bitfinex/quotes_SOLUSD_20250107
["timestamp","ask_amount","ask_price","bid_price","bid_amount"]
[1736286747494,0.12549,202.85,202.81,14.63879109]
[1736286747872,0.12549,202.85,202.8,14.63879109]
[1736286748502,0.12549,202.85,202.81,14.63879109]
[1736286749200,0.12549,202.85,202.78,2.42]
[1736286749570,23.902374,202.85,202.78,2.42]
[1736286749971,23.902374,202.85,202.78,17.05879109]
[1736286750580,23.902374,202.85,202.78,14.63879109]
[1736286750780,23.902374,202.85,202.78,2.42]
[1736286753097,0.12549,202.81,202.78,2.42]
[1736286754073,23.776884,202.85,202.78,2.42]
[1736286754074,2.91387413,202.92,202.79,14.63879109]
[1736286754396,0.92439155,202.92,202.82,14.63879109]
[1736286754693,0.12549,202.92,202.84,14.63879109]
[1736286755079,0.12549,202.92,202.83,16.14879109]
[1736286755806,43.902374,202.92,202.84,14.63879109]
[1736286755997,20.12549,202.92,202.85,17.05879109]
[1736286756302,0.12549,202.94,202.85,2.42]
[1736286756486,0.12549,202.92,202.85,2.42]
[1736286757284,23.902374,202.92,202.85,17.05879109]
[1736286757474,23.902374,202.92,202.86,14.63879109]
[1736286757475,0.12549,202.92,202.86,14.63879109]
[1736286757679,0.12549,202.92,202.87,14.63879109]
[1736286758080,23.902374,202.92,202.86,14.63879109]
[1736286758987,23.902374,202.92,202.87,14.63879109]
[1736286759385,82.3,203.09,202.89,14.63879109]
[1736286759580,0.9238114,203.07,202.9,14.63879109]
[1736286760106,0.12549,203.04,202.9,14.63879109]
[1736286760285,1.04930103,203.04,202.9,14.63879109]
[1736286760485,23.776884,203.03,202.89,14.63879109]
[1736286760683,0.12549,202.93,202.88,2.42]
[1736286760983,23.902374,202.93,202.88,2.42]
[1736286762211,23.902374,202.93,202.85,14.63879109]
[1736286762413,23.902374,202.93,202.87,2.42]
[1736286763800,22.42,203.04,202.87,17.05879109]
[1736286764003,0.92387757,203.03,202.87,17.05879109]
[1736286764189,20.0,202.99,202.87,17.05879109]
[1736286764393,0.12549,202.94,202.87,17.05879109]
[1736286765285,23.902374,202.94,202.88,14.63879109]
[1736286765704,0.12549,202.94,202.88,14.63879109]
[1736286766009,0.92385939,203.03,202.9,14.63879109]
[1736286766204,0.92385939,203.03,202.91,14.63879109]
[1736286766385,0.12549,203.02,202.91,14.63879109]
[1736286767193,23.902374,202.98,202.91,14.63879109]
[1736286769204,23.902374,202.98,202.9,14.63879109]
[1736286769702,23.902374,202.98,202.89,14.63879109]
[1736286769904,23.902374,202.98,202.9,14.63879109]
[1736286770897,23.902374,202.98,202.91,14.63879109]
[1736286771093,23.902374,202.98,202.92,14.63879109]
[1736286771603,23.902374,202.98,202.91,14.63879109]
[1736286771798,23.902374,202.98,202.92,14.63879109]
[1736286772195,23.902374,202.98,202.91,14.63879109]
[1736286772913,23.902374,202.98,202.9,14.63879109]
[1736286773309,23.902374,202.98,202.91,14.63879109]
[1736286773612,23.902374,202.98,202.9,14.63879109]
[1736286774415,0.12549,202.9,202.8,14.638791]
[1736286774714,0.92373106,202.97,202.85,14.63879109]
[1736286774915,0.92392692,202.99,202.86,14.63879109]
[1736286775302,0.92386159,203.02,202.86,14.63879109]
[1736286775501,20.12549,202.98,202.84,24.82429109]
[1736286775699,23.902374,202.92,202.84,10.1855]
[1736286775901,23.902374,202.92,202.84,7.7655]
[1736286776105,23.902374,202.92,202.8,14.63879109]
[1736286776310,23.902374,202.92,202.81,14.63879109]
[1736286776618,23.902374,202.92,202.81,17.05879109]
[1736286776993,23.902374,202.9,202.79,22.40429109]
[1736286777197,23.902374,202.9,202.8,2.42]
[1736286777923,43.902374,202.88,202.8,2.42]
[1736286781418,43.902374,202.88,202.8,17.05879109]
[1736286781619,43.902374,202.88,202.8,2.42]
[1736286782419,43.902374,202.88,202.79,22.40429109]
[1736286782633,43.902374,202.88,202.79,10.1855]
[1736286783598,43.902374,202.88,202.79,7.7655]
[1736286783937,43.902374,202.88,202.8,14.63879109]
[1736286784326,43.902374,202.88,202.79,22.40429109]
[1736286785644,43.902374,202.88,202.78,17.05879109]
[1736286788245,43.902374,202.88,202.79,14.63879109]
[1736286789244,43.902374,202.88,202.8,14.63879109]
[1736286789553,43.902374,202.88,202.8,9.33925167]
[1736286790745,43.902374,202.88,202.79,9.33925167]
[1736286792620,43.902374,202.88,202.78,11.75925167]
[1736286793444,43.902374,202.88,202.79,9.33925167]
[1736286793743,43.902374,202.88,202.8,9.33925167]
[1736286793948,43.902374,202.88,202.82,9.33925167]
[1736286794352,43.902374,202.88,202.81,9.33925167]
[1736286795756,1.95054061,202.93,202.83,9.33925167]
[1736286795932,0.92419295,202.99,202.89,9.33925167]
[1736286796137,0.92389368,203.02,202.89,9.33925167]
[1736286796337,0.12549,203.01,202.87,9.33925167]
[1736286796537,0.12549,202.99,202.87,9.33925167]
[1736286796739,0.12549,202.95,202.87,9.33925167]
[1736286796947,23.902374,202.95,202.87,9.33925167]
[1736286797253,0.12549,202.95,202.87,9.33925167]
[1736286797550,23.902374,202.99,202.87,9.33925167]
[1736286797756,0.12549,202.94,202.87,9.33925167]
[1736286798055,0.12549,202.94,202.85,2.42]
[1736286798056,0.12549,202.92,202.85,2.42]
[1736286798429,0.12549,202.93,202.85,11.75925167]
[1736286799052,23.902374,202.93,202.85,11.75925167]
[1736286799250,20.0,202.9,202.82,17.10595167]
[1736286799459,0.12549,202.89,202.8,9.33925167]
[1736286799668,23.902374,202.87,202.79,2.42]
[1736286804160,23.902374,202.87,202.78,14.59652906]
[1736286804339,23.902374,202.87,202.78,17.01652906]
[1736286804756,24.82666845,202.87,202.78,2.42]
[1736286804960,0.12549,202.83,202.78,2.42]
[1736286805140,0.12549,202.83,202.74,14.59652906]
[1736286805345,0.12549,202.83,202.76,2.42]
[1736286806051,23.902374,202.83,202.76,2.42]
[1736286808142,23.902374,202.83,202.74,17.01652906]
[1736286808440,23.902374,202.83,202.74,2.42]
[1736286808636,23.902374,202.83,202.74,17.01652906]
[1736286810356,23.902374,202.79,202.67,32.44983885]
[1736286810554,0.12549,202.75,202.68,47.01652906]
[1736286810864,0.12549,202.75,202.68,32.42]
[1736286811042,20.0,202.79,202.68,32.42]
[1736286811242,0.12549,202.76,202.68,32.42]
[1736286811448,0.12549,202.76,202.68,2.42]
[1736286811847,0.12549,202.77,202.68,17.01652906]
[1736286812135,0.12549,202.77,202.7,14.59652906]
[1736286814184,0.12549,202.77,202.71,30.0]
[1736286814337,10.0,202.93,202.74,14.59652906]
[1736286814542,0.92452849,202.92,202.76,14.59652906]
[1736286814775,26.322374,202.91,202.76,14.59652906]
[1736286815067,0.12549,202.85,202.76,14.59652906]
[1736286815279,0.12549,202.88,202.76,14.59652906]
[1736286815439,20.0,202.8,202.76,14.59652906]
[1736286815644,0.12549,202.79,202.76,14.59652906]
[1736286816053,0.12549,202.79,202.75,14.59652906]
[1736286816649,0.12549,202.79,202.73,17.01652906]
[1736286816850,23.902374,202.79,202.74,30.0]
[1736286817562,23.902374,202.79,202.7,17.01652906]
[1736286817766,23.902374,202.77,202.71,30.0]
[1736286818154,0.12549,202.75,202.71,30.0]
[1736286820663,0.12549,202.75,202.69,14.59652906]
[1736286823281,0.12549,202.75,202.69,9.34939088]
[1736286823562,23.902374,202.75,202.66,8.0414]
[1736286823764,23.902374,202.75,202.6,42.39756352]
[1736286823765,0.12549,202.71,202.67,30.0]
[1736286823967,23.902374,202.71,202.64,11.76939088]
[1736286825251,23.902374,202.71,202.64,2.42]
[1736286825452,23.902374,202.71,202.62,17.03634812]
[1736286825764,5.92507036,202.82,202.62,17.03634812]
[1736286825765,1.98143506,202.75,202.67,14.61634812]
[1736286825946,0.92507036,202.82,202.69,14.61634812]
[1736286826148,0.92507036,202.82,202.7,14.61634812]
[1736286826648,26.322374,202.85,202.69,14.61634812]
[1736286826867,0.12549,202.77,202.68,14.61634812]
[1736286827074,0.12549,202.77,202.67,14.61634812]
[1736286827371,0.12549,202.77,202.68,14.61634812]
[1736286827675,0.12549,202.83,202.75,14.61634812]
[1736286828466,0.12549,202.86,202.76,14.61634812]
[1736286828673,23.902374,202.84,202.76,14.61634812]
[1736286828971,23.902374,202.8,202.76,14.61634812]
[1736286829274,0.12549,202.8,202.76,14.61634812]
[1736286829473,23.902374,202.82,202.75,14.61634812]
[1736286830173,0.92454296,202.83,202.75,14.61634812]
[1736286830174,0.12549,202.79,202.75,14.61634812]
[1736286831175,0.12549,202.79,202.74,14.61634812]
[1736286831354,0.12549,202.79,202.72,2.42]
[1736286831355,23.902374,202.79,202.72,17.03634812]
[1736286833271,23.902374,202.79,202.7,22.61994812]
[1736286833468,24.8270291,202.79,202.7,22.61994812]
[1736286833665,24.8270291,202.79,202.7,8.0036]
[1736286833864,24.8270291,202.79,202.7,22.61994812]
[1736286834055,23.902374,202.79,202.7,22.61994812]
[1736286834463,23.902374,202.79,202.71,14.61634812]
[1736286834668,23.902374,202.79,202.73,14.61634812]
[1736286835156,1.97281678,202.84,202.74,14.61634812]
[1736286835366,0.12549,202.82,202.73,14.61634812]
[1736286835566,0.12549,202.8,202.73,14.61634812]
[1736286835884,23.902374,202.8,202.73,14.61634812]
[1736286836552,0.92455007,202.79,202.7,22.61994812]
[1736286836759,0.12549,202.79,202.7,22.61994812]
[1736286838978,23.902374,202.79,202.7,22.61994812]
[1736286840259,2.00733017,202.83,202.74,14.61634812]
[1736286840476,0.12549,202.82,202.72,14.61634812]
[1736286840759,0.12549,202.79,202.72,14.61634812]
[1736286841483,23.902374,202.84,202.72,14.61634812]
[1736286841782,24.8268621,202.84,202.73,14.61634812]
[1736286842083,0.12549,202.8,202.73,14.61634812]
[1736286842784,0.12549,202.8,202.74,14.61634812]
[1736286843903,5.0,202.96,202.78,14.61634812]
[1736286844112,2.42,202.92,202.78,14.61634812]
[1736286844316,1.04985347,202.91,202.78,14.61634812]
[1736286844614,0.12549,202.89,202.78,14.61634812]
[1736286844813,23.776884,202.86,202.79,14.61634812]
[1736286844980,1.94456128,202.92,202.8,14.61634812]
[1736286845180,0.92424621,202.91,202.8,14.61634812]
[1736286845375,23.902374,202.94,202.8,14.61634812]
[1736286845606,0.92423046,202.93,202.82,14.61634812]
[1736286845775,17.036348,202.98,202.82,14.61634812]
[1736286845975,0.12549,202.95,202.82,14.61634812]
[1736286846206,23.902374,202.9,202.82,14.61634812]
[1736286846600,0.12549,202.9,202.82,14.61634812]
[1736286846802,0.12549,202.91,202.81,17.03634812]
[1736286846996,0.12549,202.89,202.81,2.42]
[1736286847405,0.12549,202.86,202.81,2.42]
[1736286847616,23.902374,202.86,202.81,2.42]
[1736286848111,23.902374,202.88,202.81,2.42]
[1736286848319,23.902374,202.86,202.81,2.42]
[1736286849584,0.12549,202.84,202.81,2.42]
[1736286852204,23.902374,202.84,202.79,2.42]
[1736286855302,1.94288294,202.88,202.79,2.42]
[1736286855493,20.0,202.94,202.79,2.42]
[1736286855494,0.92427094,202.93,202.8,14.61634812]
[1736286855808,0.12549,202.84,202.81,14.61634812]
[1736286856303,0.12549,202.84,202.79,17.03634812]
[1736286858010,0.12549,202.84,202.79,2.42]
[1736286859057,0.12549,202.84,202.79,17.03634812]
[1736286859419,2.93835846,202.96,202.82,14.61634812]
[1736286859724,0.12549,202.94,202.8,14.61634812]
[1736286859911,0.12549,202.89,202.81,14.61634812]
[1736286860231,0.12549,202.87,202.81,14.61634812]
[1736286860915,3.34418966,202.98,202.81,14.61634812]
[1736286861117,23.902374,202.97,202.81,14.61634812]
[1736286861321,20.0,202.92,202.81,21.10004812]
[1736286861536,0.12549,202.87,202.82,14.61634812]
[1736286863140,23.902374,202.9,202.82,14.61634812]
[1736286863440,20.12549,202.9,202.82,14.61634812]
[1736286863731,20.0,202.93,202.82,14.61634812]
[1736286863921,0.12549,202.9,202.82,14.61634812]
[1736286865439,2.89054514,202.98,202.84,9.337516]
[1736286865809,20.0,202.91,202.83,9.337516]
[1736286866014,0.12549,202.9,202.83,9.337516]
[1736286866638,0.12549,202.91,202.83,9.337516]
[1736286868849,0.12549,202.91,202.86,9.337516]
[1736286869018,0.92409343,203.0,202.86,11.757516]
[1736286869225,45.57669862,203.11,202.86,11.757516]
[1736286869226,0.92393189,203.02,202.88,9.337516]
[1736286869627,0.12549,203.01,202.89,7.9822]
[1736286869924,0.12549,202.99,202.89,7.9822]
[1736286870451,51.27813502,203.03,202.93,9.337516]
[1736286870874,20.12549,202.99,202.93,9.337516]
[1736286871949,20.12549,202.99,202.92,9.337516]
[1736286873142,20.12549,202.99,202.91,9.337516]
[1736286873747,20.12549,202.99,202.92,9.337516]
[1736286874934,20.12549,202.99,202.93,11.757516]
[1736286875135,20.12549,202.99,202.93,2.42]
[1736286876550,0.12549,203.01,202.93,2.42]
[1736286876732,0.12549,203.01,202.95,9.337516]
[1736286877128,23.902374,203.02,202.96,9.337516]
[1736286877538,0.92354103,203.11,202.97,9.337516]
[1736286877539,2.0097112,203.05,202.97,9.337516]
[1736286877764,0.92354103,203.11,202.99,9.337516]
[1736286877950,0.12549,203.02,202.99,9.337516]
[1736286878636,0.12549,203.05,202.98,10.879816]
[1736286878848,0.12549,203.05,202.98,1.5423]
[1736286879034,0.9234091,203.09,202.98,10.879816]
[1736286879035,23.902374,203.08,202.98,10.879816]
[1736286879239,23.902374,203.08,202.99,9.337516]
[1736286879438,0.12549,203.08,202.99,9.337516]
[1736286879748,0.92334229,203.1,203.0,11.757516]
[1736286879953,0.12549,203.09,203.0,11.757516]
[1736286880554,0.12549,203.09,203.0,2.42]
[1736286881069,0.92333221,203.11,203.0,11.757516]
[1736286881431,0.12549,203.06,203.0,16.98320488]
[1736286881732,0.12549,203.06,203.0,46.98320488]
[1736286882249,0.12549,203.06,203.01,14.56320488]
[1736286882955,0.12549,203.06,203.01,30.0]
[1736286885056,0.12549,203.06,203.0,2.42]
[1736286885437,0.12549,203.06,203.0,16.98320488]
[1736286885941,24.82568877,203.06,202.98,1.5423]
[1736286886256,23.902374,203.06,202.99,30.0]
[1736286886635,23.902374,203.06,202.99,44.56320488]
[1736286886957,1.96157356,203.09,202.99,44.56320488]
[1736286887158,20.92353007,203.14,203.02,14.56320488]
[1736286887342,0.92353007,203.14,203.03,16.98320488]
[1736286887545,0.9231526,203.19,203.03,16.98320488]
[1736286887727,23.776884,203.12,203.03,16.98320488]
[1736286887928,23.902374,203.12,203.03,16.98320488]
[1736286888143,0.12549,203.08,203.03,16.98320488]
[1736286888747,0.12549,203.08,203.05,14.56320488]
[1736286888939,2.42,203.23,203.07,14.56320488]
[1736286889136,0.92302436,203.22,203.07,14.56320488]
[1736286889345,0.12549,203.13,203.07,14.56320488]
[1736286889552,20.0,203.1,203.07,14.56320488]
[1736286889756,0.12549,203.09,203.07,14.56320488]
[1736286890363,0.12549,203.12,203.07,14.56320488]
[1736286891158,20.12549,203.12,203.07,14.56320488]
[1736286892438,20.12549,203.12,203.08,14.56320488]
[1736286892661,20.12549,203.12,203.09,14.56320488]
[1736286892846,20.12549,203.12,203.0,1.5381]
[1736286893165,23.902374,203.1,202.94,1.5381]
[1736286893368,0.12549,203.04,202.94,1.5381]
[1736286893567,23.902374,203.04,202.89,8.4728133]
[1736286893753,23.902374,203.04,202.89,7.73403966]
[1736286893754,1.04895705,203.04,202.89,7.73403966]
[1736286894066,1.04895705,203.04,202.86,6.1094]
[1736286894067,0.12549,202.98,202.86,6.1094]
[1736286894243,23.902374,202.98,202.86,6.1094]
[1736286894443,23.902374,202.96,202.86,20.67260488]
[1736286894660,0.12549,202.94,202.86,6.1094]
[1736286895043,0.12549,202.94,202.87,14.56320488]
[1736286895367,23.902374,203.02,202.86,6.1094]
[1736286895660,0.92384992,203.03,202.86,6.1094]
[1736286895661,0.12549,202.98,202.91,14.56320488]
[1736286895860,0.12549,202.98,202.93,14.56320488]
[1736286896041,0.12549,203.07,202.94,14.56320488]
[1736286896244,1.04915409,203.07,202.96,14.56320488]
[1736286896441,1.04915409,203.07,202.9,14.56320488]
[1736286896442,0.12549,203.07,202.97,14.56320488]
[1736286896652,0.92345545,203.1,202.98,14.56320488]
[1736286896850,0.92345545,203.1,202.95,1.5381]
[1736286896851,0.92339836,203.16,202.99,14.56320488]
[1736286897052,0.92339836,203.16,203.01,14.56320488]
[1736286897266,0.92339836,203.16,203.03,14.56320488]
[1736286897634,0.92312749,203.21,202.99,14.56320488]
[1736286897840,20.0,203.16,202.97,6.1094]
[1736286898036,0.12549,203.14,202.97,20.67260488]
[1736286898342,0.12549,203.14,203.02,14.56320488]
[1736286898542,20.92314849,203.21,203.02,14.56320488]
[1736286898755,20.0,203.15,203.01,14.56320488]
[1736286898936,0.12549,203.09,202.97,20.67260488]
[1736286899140,0.12549,203.05,202.97,20.67260488]
[1736286899362,0.12549,203.08,202.97,20.67260488]
[1736286899666,0.12549,203.04,203.0,14.56320488]
[1736286899865,0.12549,203.04,203.01,14.56320488]
[1736286900365,20.0,203.16,203.01,14.56320488]
[1736286900536,44.82562944,203.15,203.01,14.56320488]
[1736286901550,44.82562944,203.15,202.97,6.1094]
[1736286901551,44.82562944,203.15,202.97,20.67260488]
[1736286901964,44.82562944,203.15,202.98,14.56320488]
[1736286902148,44.82562944,203.15,203.0,14.56320488]
[1736286902554,44.82562944,203.15,202.99,14.56320488]
[1736286902737,44.82562944,203.15,202.98,14.56320488]
[1736286902946,44.82562944,203.15,202.99,14.56320488]
[1736286903569,44.82562944,203.15,203.0,14.56320488]
[1736286903942,44.82562944,203.15,202.98,14.56320488]
[1736286904163,44.82562944,203.15,203.0,14.56320488]
[1736286904349,44.82562944,203.15,203.02,14.56320488]
[1736286904543,44.82562944,203.15,202.98,14.56320488]
[1736286904747,44.82562944,203.15,203.0,14.56320488]
[1736286904963,44.82562944,203.15,203.03,14.56320488]
[1736286905173,44.82562944,203.15,203.02,14.56320488]
[1736286905466,44.82562944,203.15,203.01,14.56320488]
[1736286906963,44.82562944,203.15,202.98,14.56320488]
[1736286907165,44.82562944,203.15,203.0,14.56320488]
[1736286907672,44.82562944,203.15,203.02,14.56320488]
[1736286907867,44.82562944,203.15,203.01,14.56320488]
[1736286908054,44.82562944,203.15,203.0,14.56320488]
[1736286908256,44.82562944,203.15,203.01,14.56320488]
[1736286909273,44.82562944,203.15,202.98,14.56320488]
[1736286909655,44.82562944,203.15,202.97,6.1094]
[1736286910090,44.82562944,203.15,202.97,20.67260488]
[1736286910580,44.82562944,203.15,202.98,14.56320488]
[1736286911663,20.0,203.09,202.89,8.2276]
[1736286911876,0.12549,203.03,202.91,14.56320488]
[1736286912191,0.12549,203.03,202.89,8.2276]
[1736286912192,0.12549,203.03,202.92,14.56320488]
[1736286912393,0.12549,203.01,202.91,14.56320488]
[1736286912595,0.12549,203.01,202.9,14.56320488]
[1736286912961,0.12549,203.01,202.92,14.56320488]
[1736286913566,0.12549,203.01,202.91,14.56320488]
[1736286913968,24.82599392,203.01,202.89,22.79080488]
[1736286914267,23.902374,202.97,202.84,8.1575]
[1736286914466,23.902374,202.95,202.82,14.56320488]
[1736286914689,23.902374,202.93,202.83,44.56320488]
[1736286914862,0.12549,202.93,202.83,44.56320488]
[1736286915057,23.902374,202.96,202.84,14.56320488]
[1736286915274,0.12549,202.92,202.84,14.56320488]
[1736286915964,0.12549,202.92,202.85,14.56320488]
[1736286916165,1.96640029,203.04,202.88,14.56320488]
[1736286916386,0.92384623,203.03,202.89,14.56320488]
[1736286916591,23.902374,202.98,202.88,14.56320488]
[1736286916802,23.902374,202.96,202.86,14.56320488]
[1736286917119,23.902374,202.94,202.82,14.56320488]
[1736286917327,0.12549,202.9,202.8,14.56320488]
[1736286917608,0.12549,202.9,202.79,22.72070488]
[1736286917770,24.8265626,202.9,202.79,22.72070488]
[1736286917969,0.12549,202.88,202.79,8.1575]
[1736286918277,0.12549,202.86,202.77,14.56320488]
[1736286918463,0.12549,202.86,202.79,14.56320488]
[1736286918885,0.12549,202.86,202.77,14.56320488]
[1736286919084,0.12549,202.86,202.78,14.56320488]
[1736286919282,0.12549,202.86,202.75,5.77940669]
[1736286919488,0.12549,202.86,202.79,23.34908918]
[1736286920386,0.12549,202.86,202.8,23.34908918]
[1736286921706,0.12549,202.86,202.79,23.34908918]
[1736286922387,0.12549,202.86,202.77,28.10908918]
[1736286923016,0.12549,202.86,202.77,4.76]
[1736286923594,0.12549,202.86,202.78,23.34908918]
[1736286924479,0.12549,202.86,202.8,23.34908918]
[1736286924677,0.12549,202.86,202.81,23.34908918]
[1736286925598,0.9242795,202.96,202.82,23.34908918]
[1736286925817,0.9242795,202.96,202.85,23.34908918]
[1736286926016,23.902374,202.95,202.84,23.34908918]
[1736286926193,0.12549,202.91,202.84,23.34908918]
[1736286926701,0.12549,202.91,202.83,23.34908918]
[1736286926897,23.902374,202.91,202.8,23.34908918]
[1736286927103,23.902374,202.91,202.82,23.34908918]
[1736286927402,0.12549,202.89,202.82,23.34908918]
[1736286927600,0.12549,202.89,202.8,23.34908918]
[1736286927899,0.12549,202.85,202.78,23.34908918]
[1736286928101,0.12549,202.85,202.8,23.34908918]
[1736286928587,0.12549,202.85,202.75,4.76]
[1736286928588,0.12549,202.85,202.78,23.34908918]
[1736286928789,0.12549,202.85,202.8,23.34908918]
[1736286928989,43.902374,202.93,202.8,23.34908918]
[1736286929185,20.0,202.88,202.8,23.34908918]
[1736286929392,0.12549,202.87,202.8,23.34908918]
[1736286930605,0.12549,202.87,202.81,23.34908918]
[1736286931803,0.12549,202.87,202.8,23.34908918]
[1736286932600,23.902374,202.87,202.76,0.73934154]
[1736286932806,23.902374,202.87,202.76,23.34908918]
[1736286933001,23.902374,202.87,202.78,23.34908918]
[1736286934444,24.82669194,202.87,202.76,23.34908918]
[1736286935135,24.82669194,202.87,202.73,31.07548918]
[1736286935136,23.902374,202.83,202.73,31.07548918]
[1736286935298,23.902374,202.83,202.74,23.34908918]
[1736286935491,23.902374,202.83,202.75,23.34908918]
[1736286935912,20.0,202.92,202.77,23.34908918]
[1736286936117,0.92433969,202.91,202.77,23.34908918]
[1736286936307,20.0,202.88,202.77,23.34908918]
[1736286936511,0.12549,202.85,202.77,23.34908918]
[1736286937018,0.12549,202.83,202.76,23.34908918]
[1736286938408,20.0,202.88,202.77,23.34908918]
[1736286938609,23.902374,202.86,202.77,23.34908918]
[1736286938810,0.12549,202.86,202.78,23.34908918]
[1736286941308,0.12549,202.86,202.77,14.59472445]
[1736286941505,0.12549,202.86,202.76,14.59472445]
[1736286942931,43.902374,202.84,202.73,14.59472445]
[1736286943130,0.12549,202.82,202.73,14.59472445]
[1736286943323,0.12549,202.82,202.75,14.59472445]
[1736286943622,0.12549,202.83,202.74,14.59472445]
[1736286943811,0.12549,202.83,202.75,14.59472445]
[1736286944530,0.12549,202.84,202.75,14.59472445]
[1736286944838,0.12549,202.82,202.75,14.59472445]
[1736286945948,23.902374,202.84,202.75,14.59472445]
[1736286946446,23.902374,202.84,202.74,14.59472445]
[1736286946647,24.82683712,202.84,202.72,19.09472445]
[1736286947250,23.902374,202.8,202.7,44.34]
[1736286948315,0.12549,202.8,202.7,58.93472445]
[1736286948538,23.902374,202.8,202.7,14.59472445]
[1736286949715,23.902374,202.8,202.71,14.59472445]
[1736286950050,0.92463137,202.89,202.76,14.59472445]
[1736286950251,0.92463137,202.89,202.77,14.59472445]
[1736286950615,0.92463137,202.89,202.79,14.59472445]
[1736286950822,51.31027467,202.9,202.79,14.59472445]
[1736286951020,0.12549,202.88,202.79,14.59472445]
[1736286951610,23.902374,202.88,202.78,14.59472445]
[1736286952452,23.902374,202.86,202.78,14.59472445]
[1736286952633,23.902374,202.86,202.77,14.59472445]
[1736286952867,0.12549,202.86,202.77,14.59472445]
[1736286953151,0.12549,202.85,202.77,14.59472445]
[1736286953532,0.12549,202.85,202.78,14.59472445]
[1736286954073,0.92435004,202.85,202.75,14.59472445]
[1736286954220,23.902374,202.86,202.72,14.59472445]
[1736286954545,23.902374,202.84,202.72,14.59472445]
[1736286954750,23.902374,202.82,202.72,14.59472445]
[1736286955062,0.12549,202.8,202.71,14.59472445]
[1736286955215,23.902374,202.8,202.7,14.59472445]
[1736286955414,23.902374,202.8,202.68,4.5]
[1736286955415,23.902374,202.78,202.69,14.59472445]
[1736286955630,0.12549,202.76,202.68,4.26]
[1736286955837,0.12549,202.76,202.69,30.0]
[1736286956035,0.12549,202.76,202.68,18.85472445]
[1736286956241,24.70166846,202.78,202.66,14.59472445]
[1736286956242,23.902374,202.77,202.66,14.59472445]
[1736286956554,23.902374,202.71,202.53,178.6433]
[1736286956722,23.902374,202.71,202.6,14.59472445]
[1736286956723,0.12549,202.69,202.6,14.59472445]
[1736286956923,0.12549,202.69,202.61,14.59472445]
[1736286957144,0.12549,202.7,202.61,14.59472445]
[1736286957314,0.12549,202.7,202.6,20.0]
[1736286957519,1.05057048,202.7,202.59,14.59472445]
[1736286957715,20.0,202.68,202.5,59.748388]
[1736286957914,0.12549,202.66,202.54,14.59472445]
[1736286958141,0.12549,202.66,202.57,14.59472445]
[1736286958327,0.92528378,202.75,202.58,14.59472445]
[1736286958522,5.0,202.69,202.5,10.0]
[1736286958738,23.902374,202.61,202.5,10.0]
[1736286958914,23.902374,202.57,202.5,10.0]
[1736286959123,0.12549,202.57,202.5,10.0]
[1736286960419,0.12549,202.6,202.5,10.0]
[1736286960619,23.902374,202.58,202.5,10.0]
[1736286960823,23.902374,202.58,202.5,24.59472445]
[1736286961042,0.12549,202.58,202.51,14.59472445]
[1736286961429,23.902374,202.6,202.53,23.4139679]
[1736286961632,23.902374,202.6,202.52,23.4139679]
[1736286962433,23.902374,202.6,202.51,23.4139679]
[1736286963260,20.0,202.67,202.53,23.4139679]
[1736286963428,0.92548472,202.66,202.55,23.4139679]
[1736286963633,0.92545233,202.7,202.56,23.4139679]
[1736286964245,0.12549,202.69,202.57,23.4139679]
[1736286964439,23.902374,202.67,202.56,23.4139679]
[1736286964646,20.0,202.71,202.55,23.4139679]
[1736286964647,23.902374,202.65,202.55,23.4139679]
[1736286965256,23.902374,202.65,202.55,6.26112874]
[1736286965825,0.92538671,202.7,202.55,6.26112874]
[1736286965826,43.902374,202.69,202.55,6.26112874]
[1736286966025,23.902374,202.67,202.55,6.26112874]
[1736286966348,23.902374,202.65,202.55,6.26112874]
[1736286966543,23.776884,202.63,202.5,16.5727]
[1736286966743,0.12549,202.6,202.51,23.4139679]
[1736286966941,0.12549,202.6,202.5,44.2466679]
[1736286967134,0.12549,202.6,202.51,23.4139679]
[1736286967346,0.12549,202.61,202.51,23.4139679]
[1736286968139,23.902374,202.59,202.5,37.6739679]
[1736286968345,23.902374,202.59,202.51,23.4139679]
[1736286968553,23.902374,202.59,202.5,14.26]